Cogmind - Beta 16 @@@ ROGUE MODE // 2026.01.27 @ 19:27:40 Player: Merc Result: Destroyed by as-28317 with Assembled Heavy Rifle Performance ------------- Evolutions (0) 0 Regions Visited (2) 400 Robots Destroyed (10) 50 Value Destroyed (305) 305 Prototype IDs (3) 60 Alien Tech Used (0) 0 Bonus (0) 0 TOTAL SCORE: 815 Bonus ------- None Cogmind --------- Core Integrity 0/250 Matter 300/300 Energy 250/250 System Corruption 0% Temperature Cool (12) Movement Treading (160) Location -10/Mines Parts ------- > --- POWER (1) -------- Ion Engine > --- PROPULSION (2) --- Light Treads Light Treads > --- UTILITY (2) ------ Small Storage Unit > --- WEAPON (2) ------- Medium Laser > --- INVENTORY (8) ---- Structural Scanner Seismic Detector Power Shielding Peak State ------------ > --- POWER ------------ Light Ion Engine > --- PROPULSION ------- Aluminum Leg Aluminum Leg > --- UTILITY ---------- Improved Heat Sink > --- WEAPON ----------- Medium Laser Medium Laser > --- INVENTORY -------- Aluminum Leg Aluminum Leg Structural Scanner [Rating: 8] Favorites ----------- Power Ion Engine Engine Ion Engine Propulsion Light Treads Treads Light Treads Leg Aluminum Leg Utility Propulsion Shielding Device Seismic Detector Storage Small Storage Unit Protection Propulsion Shielding Weapon Medium Laser Energy Gun Medium Laser Ballistic Gun Heavy Assault Rifle Build | -11 -10 -10 ------- Run | Yrd Mat Min Slots Evolved . | . . . Power . | . . . Propulsion . | . . . Utility . | . . . Weapon . | . . . Parts Attached 14 | 5 . 9 Power 2 | 1 . 1 Engine 2 | 1 . 1 Core . | . . . Reactor . | . . . Propulsion 4 | 2 . 2 Treads 2 | . . 2 Leg 2 | 2 . . Wheel . | . . . Hover . | . . . Flight . | . . . Utility 4 | . . 4 Device 2 | . . 2 Storage 1 | . . 1 Processor . | . . . Hackware . | . . . Protection 1 | . . 1 Artifact . | . . . Weapon 4 | 2 . 2 Energy Gun 3 | 2 . 1 Energy Cannon . | . . . Ballistic Gun 1 | . . 1 Ballistic Cannon . | . . . Launcher . | . . . Special Weapon . | . . . Impact Weapon . | . . . Slashing Weapon . | . . . Piercing Weapon . | . . . Special Melee Weapon . | . . . Unidentified Prototypes . | . . . Parts Lost 4 | . . 4 Power 1 | . . 1 Propulsion . | . . . Utility 2 | . . 2 Weapon 1 | . . 1 Highest Loss Streak 2 | . . 2 To Critical Strikes . | . . . Average Backups 3 | . 1 3 Power . | . . . Propulsion 1 | . 1 1 Utility 1 | . . 1 Weapon . | . . . Tool/Special . | . . . Unused Backups 8 | 4 . 4 Power . | . . . Propulsion 6 | 4 . 2 Utility 2 | . . 2 Weapon . | . . . Tool/Special . | . . . Average Slot Usage (%) 91 | . 71 93 Engine 13 | . 14 13 Treads 21 | . . 23 Leg 6 | . 28 4 Device 8 | . . 9 Storage 1 | . . 1 Protection 10 | . . 11 Energy Gun 16 | . 28 15 Ballistic Gun 10 | . . 11 Peak Build Rating 8 | 5 5 8 Average Rating 6 | 3 5 7 On Entrance 3 | . 5 5 Avg Prop Armor Cover (%) . | . . . Naked Turns . | . . . Heaviest Build 16 | 7 7 16 Greatest Support 40 | 20 20 40 Greatest Overweight (x) . | . . . Average Overweight (x) . | . . . Largest Inventory Capacity 8 | 5 5 8 Average Capacity 5 | 5 5 5 Most Carried 5 | 2 2 5 Average Carried 3 | . 1 3 Final Capacity 8 | 5 5 8 Final Carried 3 | 1 2 3 Class Distribution -------------------- 63% | Scavenger-Mutant 36% | Mutant Dominant Class ---------------- Mutant | -10/Materials Scavenger-Mutant | -10/Mines Resources | -11 -10 -10 ----------- Run | Yrd Mat Min Matter Collected 411 | 250 . 161 Remotely . | . . . Salvage Created 427 | 40 . 387 Parts 24 | 4 . 20 Haulers Intercepted . | . . . Recyclers Shooed 1 | . . 1 Parts Field Recycled . | . . . Retrieved Matter . | . . . Parts Self-Destructed . | . . . Prevented . | . . . Parts Restored . | . . . Kills | -11 -10 -10 ------- Run | Yrd Mat Min Combat Hostiles Destroyed 8 | 1 . 7 Guns 8 | 1 . 7 Classes Destroyed 5 | 1 . 4 Builder 1 | . . 1 Tunneler 2 | . . 2 Grunt 5 | 1 . 4 Sentry 2 | . . 2 Assembled 1 | . . 1 Best Kill Streak 2 | 1 . 2 Combat Bots Only 2 | 1 . 2 Max Kills in Single Turn 1 | 1 . 1 Gunslinging . | . . . Exploded . | . . . Melee . | . . . Uniques/NPCs Destroyed . | . . . Combat | -11 -10 -10 -------- Run | Yrd Mat Min Hostile Shots Fired 83 | 4 . 79 Missed 22 | 1 . 21 Hits 61 | 3 . 58 Melee 1 | . . 1 Projectile 60 | 3 . 57 AOE 4 | . . 4 Damage Taken 968 | 33 . 935 Core 257 | 11 . 246 Absorbed by Shields . | . . . Redirected to Shielding 52 | . . 52 Core Remaining (%) 95 | 95 . . Volleys Fired 43 | 3 1 39 Largest 2 | 2 2 2 Hottest 100 | 100 100 100 Shots Fired 72 | 6 2 64 Gun 72 | 6 2 64 Cannon . | . . . Launcher . | . . . Special . | . . . Kinetic 22 | . . 22 Thermal 41 | 6 2 33 Explosive . | . . . Electromagnetic 9 | . . 9 Robot Hit Streak 8 | 1 . 8 Robot Miss Streak 3 | 3 2 3 Penetration Max . | . . . Secondary Targets 1 | . . 1 Max Gunslinging Chain 1 | . . 1 Shots Hit Robots 46 | 2 . 44 Core Hits 21 | 2 . 19 Critical Kills . | . . . Critical Parts Destroyed . | . . . Critical Strikes 4 | . . 4 Burn 4 | . . 4 Melee Attacks . | . . . Impact . | . . . Slashing . | . . . Piercing . | . . . Sneak Attacks . | . . . Combat Hostiles . | . . . Follow-up Attacks . | . . . Damage Inflicted 624 | 25 . 599 Guns 616 | 25 . 591 Cannons . | . . . Explosions . | . . . Melee . | . . . Ramming 8 | . . 8 Kinetic 198 | . . 198 Thermal 298 | 25 . 273 Explosive . | . . . Electromagnetic 120 | . . 120 Impact . | . . . Slashing . | . . . Piercing . | . . . Highest Corruption . | . . . Average Corruption . | . . . Corruption Purged . | . . . Corruption Blocked . | . . . Overload Shots . | . . . Overflow Damage . | . . . Projectiles . | . . . Explosions . | . . . Melee . | . . . Knockbacks . | . . . Impact . | . . . Kinetic . | . . . Secondary . | . . . Self-Inflicted Damage . | . . . Shots . | . . . Rammed 1 | . . 1 Targets Rammed 1 | . . 1 Kicked . | . . . Crushed . | . . . Highest Temperature 297 | 123 39 297 Average Temperature 69 | 64 20 73 Received Heat Transfer 195 | 18 . 177 Effects 2 | . . 2 Interference 2 | . . 2 Siege Activations . | . . . Martial Activations . | . . . Shielding Activations . | . . . Robots Disrupted . | . . . Combat Hostiles . | . . . Robots Corrupted . | . . . Combat Hostiles . | . . . Parts Fried . | . . . Impact Corruptions . | . . . Robots Melted . | . . . Combat Hostiles . | . . . Parts Melted 4 | . . 4 Heat Transferred 1184 | 74 . 1110 Parts Sabotaged . | . . . Parts Stolen . | . . . Parts Stripped . | . . . Power Chain Reactions . | . . . Alert | -11 -10 -10 ------- Run | Yrd Mat Min Maximum Alert Level . | . . . Low Security (%) 100 | 100 100 100 Level 1 . | . . . Level 2 . | . . . Level 3 . | . . . Level 4 . | . . . Level 5 . | . . . High Security . | . . . Max Security . | . . . Peak Influence 60 | 20 17 60 Initial 13 | . 13 . Average 8 | 2 9 9 Influence Increases 199 | 20 24 155 Destroy 0b10 Robot/C 140 | 20 . 120 Destroy 0b10 Robot/NC 15 | . . 15 Destroy Leader 20 | . . 20 Successful Hack 24 | . 24 . Influence Decreases 199 | . 44 155 Entered New Map 7 | . 7 . Time Decay 182 | . 37 145 Lost Part 10 | . . 10 Squads Dispatched 2 | . 2 . Investigation 2 | . 2 . Extermination . | . . . Reinforcement . | . . . Assault . | . . . Garrison . | . . . Intercept . | . . . Searches Triggered . | . . . Construction Impeded . | . . . Haulers Reinforced . | . . . Active Scanning Responses . | . . . Cargo Convoy Interrupts . | . . . Stealth | -11 -10 -10 --------- Run | Yrd Mat Min Distress Signals . | . . . Communications Jammed . | . . . Distress Signals . | . . . Times Spotted 31 | 1 1 29 Peak Tracking Total 19 | 1 1 19 Tactical Retreats 3 | . . 3 Traps | -11 -10 -10 ------- Run | Yrd Mat Min Traps Triggered 1 | . 1 . Indirectly . | . . . Trap Hack Attempts . | . . . Triggered . | . . . Disarmed . | . . . Reprogrammed . | . . . Reused . | . . . Traps Extracted . | . . . Installed . | . . . Triggered . | . . . Machines | -11 -10 -10 ---------- Run | Yrd Mat Min Machines Disabled . | . . . Max in Single Turn . | . . . Machines Repaired . | . . . Machines Dismantled . | . . . Machines Sabotaged . | . . . Overloaded Fab Kills . | . . . Hacking | -11 -10 -10 --------- Run | Yrd Mat Min Machines Accessed 2 | . 2 . Terminals 2 | . 2 . Fabricators . | . . . Repair Stations . | . . . Recycling Units . | . . . Scanalyzers . | . . . Garrison Access . | . . . Total Hacks 4 | . 4 . Successful 4 | . 4 . Failed . | . . . Catastrophic . | . . . Database Lockouts . | . . . Manual . | . . . Terminals 4 | . 4 . Fabricators . | . . . Repair Stations . | . . . Recycling Units . | . . . Scanalyzers . | . . . Garrison Access . | . . . Terminal Hacks 4 | . 4 . Record 1 | . 1 . Robot Analysis 1 | . 1 . Prototype ID Bank 1 | . 1 . Investigation Status 1 | . 1 . Fabricator Hacks . | . . . Repair Station Hacks . | . . . Recycling Unit Hacks . | . . . Scanalyzer . | . . . Garrison Access Hacks . | . . . Unauthorized Hacks . | . . . Terminals . | . . . Fabricators . | . . . Repair Stations . | . . . Recycling Units . | . . . Scanalyzers . | . . . Garrison Access . | . . . Data Cores Recovered . | . . . Used . | . . . Hacking Detections 1 | . 1 . Full Trace Events 1 | . 1 . Feedback Events . | . . . Feedback Blocked . | . . . Robot Schematics Acquired . | . . . Robots Built . | . . . Authchips . | . . . Time . | . . . Total Robot Build Rating . | . . . Part Schematics Acquired . | . . . Parts Built . | . . . Authchips . | . . . Time . | . . . Total Part Build Rating . | . . . Part Studies Acquired . | . . . Parts Repaired . | . . . Time . | . . . Parts Recycled . | . . . Recycled Matter . | . . . Retrieved Matter . | . . . Retrieved Components . | . . . Parts Scanalyzed . | . . . Part Schematics Acquired . | . . . Parts Damaged . | . . . Bothacking | -11 -10 -10 ------------ Run | Yrd Mat Min Used RIF Installer . | . . . Robots Hacked . | . . . Non-combat . | . . . Combat . | . . . Robot Hacks Applied . | . . . Relay Couplers Released . | . . . Fabnet Peak Effective % . | . . . Robots Rewired . | . . . Allies Hacked . | . . . Hacks Repelled . | . . . Allies | -11 -10 -10 -------- Run | Yrd Mat Min Total Allies 3 | . . 3 Largest Group 3 | . . 3 Highest-Rated Group 40 | . . 40 Highest-Rated Ally 16 | . . 16 Total Orders . | . . . Ally Attacks 16 | . . 16 Total Damage 172 | . . 172 Kills 2 | . . 2 Allies Corrupted . | . . . Allies Melted . | . . . Intel | -11 -10 -10 ------- Run | Yrd Mat Min Active Infowar (turns) 611 | . . 611 Seismic 611 | . . 611 Robot Analysis Total 1 | . 1 . Derelict Logs Recovered 2 | . . 2 Drone Launches . | . . . Drone Recoveries . | . . . Exploration | -11 -10 -10 ------------- Run | Yrd Mat Min Turns Passed 1099 | 98 86 915 Spaces Moved 640 | 69 67 504 Core 16 | 16 . . Treads 433 | . . 433 Legs 191 | 53 67 71 Wheels . | . . . Hover . | . . . Flight . | . . . Fastest Speed 50 | 50 120 120 Average Speed 145 | 103 120 154 Slowest Speed 160 | 120 120 160 Overloaded Moves . | . . . Propulsion Burnouts . | . . . Robots Hopped . | . . . Potential Cave-ins . | . . . Cave-ins Triggered . | . . . Exploration Rate (%) 29 | 7 15 66 Regions Visited 2 Branch Regions 1 Pre-discovered Areas 2 | . . 2 Known Exits Taken . | . . . Unknown Exits Taken 2 | 1 1 . Scrap Searched 1 | . . 1 Spaces Dug . | . . . Terrain Destroyed . | . . . Melee . | . . . Projectile . | . . . AOE . | . . . Terrain Rammed . | . . . Walls Destroyed . | . . . Machines Disabled . | . . . Actions | -11 -10 -10 --------- Run | Yrd Mat Min Total 737 | 91 70 576 Wait 11 | 2 2 7 Move 638 | 68 66 504 Hop . | . . . Pick Up 19 | 9 1 9 Fast Attach 3 | 1 . 2 Attach 7 | 4 . 3 Detach . | . . . Swap 5 | . . 5 Drop 10 | 4 . 6 Fire 43 | 3 1 39 Melee . | . . . Ram . | . . . Kick . | . . . Crush 1 | . . 1 Escape Stasis . | . . . Rewire . | . . . Trap . | . . . Miscellaneous . | . . . Route ------- -11/Scrapyard -10/Materials -10/Mines (discovered 2 exits: [*Mat x2]) History --------- Turn | Location | Event 2 | -11/Scrapyard | Met Revision 17 74 | -11/Scrapyard | Discovered new exit (range 8) 99 | -11/Scrapyard | Entered Materials 156 | -10/Materials | Discovered new exit (range 11) 185 | -10/Materials | Entered Mines 342 | -10/Mines | Build established: Mutant 539 | -10/Mines | Learned location of Zion (-7) 667 | -10/Mines | Discovered new exit (range 4) 693 | -10/Mines | Build established: Scavenger-Mutant 717 | -10/Mines | Discovered new exit (range 15) 775 | -10/Mines | Assisted by bots powering up and referring to "LRC-V3" 1000 | -10/Mines | Assembled infested the area 1026 | -10/Mines | Core integrity fell below 50% 1093 | -10/Mines | Core integrity fell below 20% 1100 | -10/Mines | Destroyed by as-28317 with Assembled Heavy Rifle Last Messages --------------- payload. 01058_ D-53 Grenadier unfolds itself. 01062_ as-22331 destroyed. 01062_ as-48052 destroyed. 01063_ D-53 Grenadier destroyed. 01064_ Mercenary 1a destroyed. 01064_ as-43846 destroyed. 01069_ K-01 Serf collects debris. 01070_ D-53 Grenadier knocked back. 01070_ as-45748 destroyed. 01071_ The unstable cave ceiling collapses. 01072_ K-01 Serf collects debris. 01072_ D-53 Grenadier destroyed. 01072_ Trooper 1a destroyed. 01073_ K-01 Serf destroyed. 01080_ The unstable cave ceiling collapses. 01088_ U-05 Engineer destroyed. 01090_ K-01 Serf destroyed. 01092_ Hvy. Assault Rifle destroyed. 01093_ Propulsion Shielding destroyed. Map ----- +----------------------------------------------------+ | ?????????????????????????????????????????????????? | | ?????????????????????????????????????????????????? | | ?????????????????????????????????????????????????? | | ?????????????????????????????????????????????????? | | ?????????????????????????????????????????????????? | | ?????????????????????????????????????????????????? | | ?????????????????????????????????????????????????? | | ???????? ????????????????????????????????????????? | | ???????? ????????????????????????????????????????? | | ???????? ????????????????????????????????????????? | | ???????? ???????????????? #?#????????????????????? | | ???????? ???????????#####a## ??????????????????? | | ???????? ??????????## ?????????????????? | | ????????%??????????# ????????????????? | | ???????# #?????????# #????????????????? | | ???????# #?????????# #?????????????????? | | ???????# #????????## t#??????????????????? | | ???????# #????????# #??????????????????? | | ??????## ##???????# ##?????????????????? | | ?????## ##??????# ##????????????????? | | ?????# #????## #????????????????? | | ?????# ! #??##=* #????????????????? | | ????## = =# # ###%=% #?????????????????? | | ????# = aa!* #?????????????????? | | ????#*! #### #?????????????????? | | ????##%= # #???##### @ #?????????????????? | | ####### # ##???????### #???????####??????? | | = % ##???????????## ##??????## ######## | | ######## # #?????????????######????#### | | ???????###!#??????????????????????## ####### | | ?????????#%#??????????????????????# ##???# | | ?????????# #???????????####???????# #???# | | ??######?# #??????????## ##???#### ##### | | ?##" "### #?????????## ##??# ### ## | | ?# ! = |## #????????## ##?# ## #?# ## < | | ?#!!!!! ##%#????????# ### ### ##?# ## | | ?## =[### #???????## #?####??# ## | | ?###++## ##??##### #???????# ## | | ## % #### % ## ###???????# ## | | % | % #### #?????????# ###### | | % % = #?## #####?????????# #????? | | % #### ##?# ##?????????????# #????? | | = #??## ##??# ##?????????????# #????? | | ## ##???## ##???# ##????????????# ##???? | | #########?????# #????# ##???????????# #???? | | #??????####???# #????# ##??????????### ###?? | | ?????## #??# #????# #????????????# #?? | | #???## ??# #????# #?????????##### #?? | | ##???# ??# #????# #????????## ### #?? | | #????# ### #????## ##???????## ## #?? | +----------------------------------------------------+ Best States ------------- Heat Dissipation 39 Energy Generation 10 Energy Capacity 250 Matter Stores 300 Matter Capacity 300 Sight Range 16 Terrain Scan Density 10 Propulsion Shielding 33 Evasion (%) 55 Recoil Reduction 2 Item Schematics ----------------- None Robot Schematics ------------------ None Fabricated ------------ Nothing Repaired ---------- Nothing Studied --------- None Alien Tech Used ----------------- None Achievements -------------- DATA ERROR: Steam Global Achievement% Challenges ------------ None Game ------ Seed ScanPhasePod Manual? 0 Play Time 00:17:38 Cumulative 1.6 hours Start 2026.01.27 @ 19:07:46 End 2026.01.27 @ 19:27:40 Sessions 1 Manual Loads 0 Difficulty Rogue Special Mode None Game No. 2 Rogue 2 Adventurer 0 Explorer 0 Win Type - Total 0 Types 0/0/0/0/0/0/0/0/0/0 Lore% 0 Gallery% 3 Achievement% 3 Wizard Run 0 Options --------- Layout 1 ASCII 0 Keyboard 0 Movement Mouse Keybinds 0 Fullscreen 2 Font 24/Smallcaps Map View 50x35 Zoom Use 0% Tactical HUD 1 Map Filters NONE Filters NONE Steam 1 RUN: 0cfc466e-1d13-4ac3-91af-c1970a758024